bitfinex-derivatives/quotes_BTCF0:USTF0_20251118
["timestamp","ask_amount","ask_price","bid_price","bid_amount"]
[1763437296540,0.00073267,90890.0,90882.0,0.00011097]
[1763437296848,0.16556321,90889.0,90882.0,0.00011097]
[1763437297351,0.16556321,90889.0,90882.0,0.05431097]
[1763437298738,0.16556321,90889.0,90882.0,0.00011097]
[1763437299751,0.16556321,90889.0,90888.0,0.0542]
[1763437299935,0.16556321,90889.0,90882.0,0.00011097]
[1763437300748,0.11000001,90888.0,90882.0,0.00011097]
[1763437300945,0.11000001,90887.0,90876.0,0.00016502]
[1763437301247,0.11000001,90887.0,90830.0,0.43595954]
[1763437301248,0.16417139,90887.0,90835.0,0.1102208]
[1763437301447,0.00073267,90880.0,90867.0,0.0542]
[1763437301640,0.00073267,90880.0,90870.0,0.00219803]
[1763437301841,0.16430508,90879.0,90870.0,0.00219803]
[1763437302448,0.00013369,90879.0,90878.0,0.1818]
[1763437302745,0.00013369,90879.0,90867.0,0.0542]
[1763437303051,0.00013369,90879.0,90870.0,0.00219803]
[1763437303246,0.16541351,90878.0,90870.0,0.00219803]
[1763437303449,0.16541351,90878.0,90877.0,0.1818]
[1763437303648,0.15218272,90878.0,90877.0,0.1818]
[1763437303955,0.15218272,90878.0,90867.0,0.0542]
[1763437304251,0.15218272,90878.0,90870.0,0.00219803]
[1763437304648,0.15218272,90878.0,90877.0,0.08858]
[1763437304845,0.51004001,90877.0,90819.0,0.03916166]
[1763437305052,0.00073267,90870.0,90840.0,0.00219803]
[1763437305347,0.02382714,90869.0,90840.0,0.00219803]
[1763437305652,0.00073267,90850.0,90840.0,0.00219803]
[1763437306149,0.16584029,90849.0,90840.0,0.00219803]
[1763437306948,0.16572983,90849.0,90840.0,0.00219803]
[1763437307155,0.13383238,90848.0,90840.0,0.00219803]
[1763437307347,0.02387967,90847.0,90819.0,0.00014235]
[1763437307547,0.00073267,90840.0,90830.0,0.00219803]
[1763437307945,0.16402173,90839.0,90830.0,0.00219803]
[1763437309147,0.00014123,90838.0,90830.0,0.00219803]
[1763437309550,0.1652791,90837.0,90830.0,0.00219803]
[1763437310545,0.1652791,90837.0,90836.0,0.1818]
[1763437310746,0.1652791,90837.0,90825.0,0.05430854]
[1763437310946,0.1652791,90837.0,90830.0,0.00219803]
[1763437311454,0.1101995,90836.0,90830.0,0.00219803]
[1763437311658,0.00011949,90836.0,90830.0,0.00219803]
[1763437311851,0.16539611,90835.0,90830.0,0.00219803]
[1763437312952,0.13660634,90835.0,90834.0,0.1818]
[1763437313155,0.00016512,90854.0,90835.0,0.1818]
[1763437313344,0.00073267,90850.0,90840.0,0.05639803]
[1763437313744,0.16593688,90849.0,90840.0,0.05639803]
[1763437314148,0.00010064,90848.0,90840.0,0.05639803]
[1763437314356,0.00010064,90848.0,90847.0,0.1818]
[1763437315244,0.00010064,90848.0,90840.0,0.0542]
[1763437315245,0.02104,90896.0,90853.0,0.1818]
[1763437315449,0.00073267,90890.0,90860.0,0.05639803]
[1763437316150,0.00016512,90884.0,90866.0,0.00016512]
[1763437316358,0.00016512,90884.0,90880.0,0.00219803]
[1763437316552,0.16408913,90883.0,90882.0,0.1818]
[1763437316756,0.00016512,90884.0,90883.0,0.17582]
[1763437317353,0.11844101,90932.0,90888.0,0.17993]
[1763437317559,0.11844101,90932.0,90880.0,0.05639803]
[1763437317560,0.00073267,90910.0,90900.0,0.05201803]
[1763437317858,0.16600252,90909.0,90900.0,0.05201803]
[1763437318053,0.03900101,90936.0,90908.0,0.17993]
[1763437318361,0.00073267,90930.0,90920.0,0.05201803]
[1763437318957,0.1653368,90929.0,90920.0,0.05201803]
[1763437319362,0.1653368,90929.0,90928.0,0.09269]
[1763437319562,0.1653368,90929.0,90920.0,0.04982]
[1763437319852,0.1653368,90929.0,90920.0,0.05201803]
[1763437320057,0.00073267,90930.0,90929.0,0.17993]
[1763437320757,0.00016502,90931.0,90930.0,0.09488803]
[1763437320961,0.00016502,90931.0,90930.0,0.18212803]
[1763437321548,0.02401274,90931.0,90930.0,0.18212803]
[1763437321950,0.02401274,90931.0,90913.0,0.00016502]
[1763437321951,0.00073267,90930.0,90913.0,0.00016502]
[1763437322266,0.03900101,90923.0,90850.0,0.43595954]
[1763437322461,0.18860072,90929.0,90829.0,0.0035]
[1763437322462,0.00073267,90910.0,90855.0,0.066]
[1763437322657,0.03900101,90907.0,90880.0,0.05639803]
[1763437322963,0.02384772,90909.0,90880.0,0.00219803]
[1763437322964,0.00073267,90890.0,90880.0,0.00219803]
[1763437323151,0.02384772,90889.0,90880.0,0.00219803]
[1763437323346,0.02384772,90888.0,90880.0,0.00219803]
[1763437323658,0.18807208,90887.0,90880.0,0.00219803]
[1763437323857,0.02384772,90886.0,90880.0,0.00219803]
[1763437324158,0.16459401,90885.0,90875.0,0.00016502]
[1763437324465,0.00073267,90880.0,90840.0,0.04982]
[1763437324648,0.03900101,90874.0,90840.0,0.05201803]
[1763437324853,0.00073267,90850.0,90840.0,0.00219803]
[1763437325056,0.03900101,90848.0,90820.0,0.04982]
[1763437325260,0.03900101,90848.0,90830.0,0.00219803]
[1763437325261,0.00073267,90840.0,90830.0,0.00219803]
[1763437325560,0.00073267,90840.0,90782.0,0.1102854]
[1763437325561,0.05822586,90833.0,90819.0,1e-08]
[1763437325865,0.46360923,90839.0,90766.0,0.00482181]
[1763437325866,0.05822586,90822.0,90766.0,0.00482181]
[1763437326157,0.00073267,90810.0,90804.0,0.04982]
[1763437326361,0.00073267,90810.0,90809.0,0.17993]
[1763437326549,0.02387359,90820.0,90810.0,0.00219803]
[1763437326748,0.0239932,90819.0,90810.0,0.00219803]
[1763437326953,0.02387315,90818.0,90810.0,0.00219803]
[1763437327159,0.02387315,90817.0,90810.0,0.00219803]
[1763437327363,0.02387315,90816.0,90810.0,0.00219803]
[1763437327551,0.02387315,90815.0,90809.0,1.5]
[1763437327759,0.03906746,90810.0,90758.0,0.27428]
[1763437328063,0.00073267,90790.0,90780.0,0.00219803]
[1763437328259,0.00073267,90790.0,90757.0,0.00010943]
[1763437328461,0.27538009,90789.0,90757.0,0.00010943]
[1763437328767,0.00073267,90770.0,90760.0,0.00219803]
[1763437328956,0.29814989,90769.0,90760.0,0.00219803]
[1763437329161,0.02382989,90768.0,90760.0,0.00219803]
[1763437329359,0.0239199,90767.0,90760.0,0.00219803]
[1763437329659,0.02389455,90766.0,90760.0,0.00219803]
[1763437329965,0.16601961,90765.0,90760.0,0.00219803]
[1763437330260,0.16573825,90766.0,90757.0,0.00010943]
[1763437330764,0.16573825,90764.0,90736.0,1.5]
[1763437330960,0.00016522,90759.0,90750.0,0.00219803]
[1763437331266,0.16523573,90758.0,90750.0,0.00219803]
[1763437331954,0.00012022,90757.0,90750.0,0.00219803]
[1763437332259,0.27432,90794.0,90758.0,0.04982]
[1763437332557,0.27432,90794.0,90770.0,0.00219803]
[1763437332558,0.00073267,90780.0,90770.0,0.00219803]
[1763437332763,0.16605075,90782.0,90781.0,0.04982]
[1763437332962,0.27444,90814.0,90781.0,0.04982]
[1763437333155,0.00073267,90800.0,90790.0,0.00219803]
[1763437333356,0.16596037,90796.0,90790.0,0.00219803]
[1763437333563,0.00016522,90799.0,90790.0,0.00219803]
[1763437333958,0.16596037,90796.0,90790.0,0.00219803]
[1763437334159,0.16596037,90798.0,90790.0,0.00219803]
[1763437334359,0.00016522,90799.0,90790.0,0.00219803]
[1763437334756,0.03906746,90841.0,90790.0,0.40219803]
[1763437334957,0.00073267,90830.0,90816.0,0.04982]
[1763437335163,0.16462295,90829.0,90820.0,0.00219803]
[1763437335354,0.00073267,90830.0,90820.0,0.00219803]
[1763437335561,0.16543772,90829.0,90820.0,0.00219803]
[1763437336063,0.11008001,90828.0,90815.0,0.00016522]
[1763437336263,0.00073267,90820.0,90770.0,0.36452884]
[1763437336457,0.02579263,90819.0,90790.0,0.00219803]
[1763437336659,0.00073267,90800.0,90790.0,0.00219803]
[1763437337166,0.16615455,90819.0,90800.0,0.04982]
[1763437337167,0.00016522,90804.0,90800.0,0.04982]
[1763437338366,0.16468176,90803.0,90800.0,0.04982]
[1763437338668,0.16468176,90803.0,90790.0,0.00219803]
[1763437338858,0.00073267,90800.0,90790.0,0.00219803]
[1763437339256,0.1658073,90799.0,90790.0,0.00219803]
[1763437339473,0.16571985,90799.0,90790.0,0.00219803]
[1763437339963,0.11012001,90798.0,90786.0,0.00016522]
[1763437340169,0.02578019,90797.0,90734.0,0.1103437]
[1763437340363,0.00073267,90790.0,90770.0,0.00219803]
[1763437340555,0.00073267,90790.0,90781.0,0.04467]
[1763437340761,0.00073267,90790.0,90706.0,0.69496]
[1763437340762,0.30173714,90789.0,90690.0,0.1103977]
[1763437340963,0.36526151,90780.0,90750.0,0.00219803]
[1763437341161,0.36452884,90760.0,90689.0,0.04467]
[1763437341361,0.36452884,90760.0,90730.0,0.00219803]
[1763437341362,0.00073267,90740.0,90730.0,0.00219803]
[1763437341567,0.00073267,90740.0,90735.0,0.04467]
[1763437341761,0.16469573,90739.0,90735.0,0.04467]
[1763437343073,0.00010781,90739.0,90735.0,0.04467]
[1763437343968,0.27582747,90738.0,90713.0,1.5]
[1763437344162,0.0258195,90737.0,90730.0,0.00219803]
[1763437344466,0.16586416,90736.0,90713.0,1.5]
[1763437344667,0.00219803,90720.0,90713.0,1.5]
[1763437344976,0.16585223,90719.0,90713.0,1.5]
[1763437345272,0.00016532,90726.0,90713.0,1.9]
[1763437345474,0.03906746,90792.0,90744.0,0.04467]
[1763437345673,0.00219803,90770.0,90744.0,0.04467]
[1763437345875,0.16478946,90759.0,90744.0,0.04467]
[1763437346178,0.00219803,90750.0,90744.0,0.04467]
[1763437347176,0.16620916,90749.0,90738.0,0.00016522]
[1763437347569,5.06e-05,90748.0,90738.0,0.00016522]
[1763437347878,0.19008663,90747.0,90680.0,0.36452884]
[1763437348073,0.00219803,90720.0,90670.0,0.47495074]
[1763437348272,5.06e-05,90719.0,90670.0,0.43016884]
[1763437348479,0.16566965,90719.0,90712.0,1.54982]
[1763437349379,0.16561905,90719.0,90661.0,0.1104328]
[1763437349581,0.00219803,90700.0,90663.0,0.1104301]
[1763437349778,5.06e-05,90699.0,90662.0,0.27464]
[1763437350075,5.06e-05,90699.0,90670.0,0.36452884]
[1763437350279,0.16549497,90698.0,90662.0,0.27456]
[1763437350481,0.16549497,90698.0,90690.0,1.5]
[1763437351185,0.16549497,90698.0,90697.0,0.15749]
[1763437352179,0.27452,90742.0,90703.0,0.15749]
[1763437352385,0.02579873,90727.0,90726.0,0.15749]
[1763437352683,0.19028344,90727.0,90726.0,0.15749]
[1763437352876,0.02579873,90727.0,90726.0,0.15749]
[1763437353179,0.00328,90718.0,90717.0,0.00016533]
[1763437353385,0.02907873,90718.0,90717.0,0.00016533]
[1763437353677,0.19335313,90718.0,90717.0,0.00016533]
[1763437353873,0.19235313,90718.0,90717.0,0.00016533]
[1763437354075,0.19035313,90718.0,90717.0,0.00016533]
[1763437354270,0.19035313,90718.0,90642.0,0.1104555]
[1763437354271,0.61037313,90718.0,90642.0,0.1104555]
[1763437354474,0.00219803,90700.0,90650.0,0.36452884]
[1763437354675,0.03906746,90709.0,90708.0,0.15749]
[1763437354874,0.00219803,90710.0,90708.0,1.65749]
[1763437355275,0.00219803,90710.0,90708.0,1.5]
[1763437355476,0.61282469,90709.0,90662.0,0.275]
[1763437355681,0.00219803,90700.0,90662.0,0.275]
[1763437355887,0.00219803,90700.0,90684.0,0.04715]
[1763437356080,0.16382469,90699.0,90684.0,0.04715]
[1763437356481,0.16382469,90699.0,90687.0,1.5]
[1763437356885,0.00016533,90718.0,90698.0,0.15749]
[1763437357280,0.00219803,90710.0,90698.0,0.15749]
[1763437357585,0.16501825,90709.0,90698.0,0.15749]
[1763437358489,0.00016533,90718.0,90717.0,0.15749]
[1763437358676,0.00016533,90718.0,90687.0,1.501]
[1763437358981,0.00219803,90710.0,90698.0,0.001]
[1763437359384,0.16581234,90709.0,90698.0,0.001]
[1763437359984,0.16581234,90709.0,90687.0,1.502]
[1763437360185,0.00219803,90700.0,90687.0,1.503]
[1763437360487,0.16537476,90717.0,90687.0,1.503]
[1763437360699,0.00219803,90710.0,90687.0,1.503]
[1763437360995,0.16537476,90709.0,90687.0,1.502]
[1763437361389,0.00016533,90718.0,90708.0,0.15749]
[1763437361795,0.16433252,90717.0,90708.0,0.15749]
[1763437362993,0.16433252,90717.0,90716.0,0.15749]
[1763437363195,0.00016533,90718.0,90717.0,0.15749]
[1763437363799,0.15034533,90718.0,90708.0,0.001]
[1763437363985,0.16528723,90718.0,90717.0,0.0805]
[1763437364890,0.16528723,90718.0,90708.0,0.001]
[1763437365095,0.16528723,90718.0,90699.0,0.04715]
[1763437365302,0.00219803,90710.0,90687.0,1.5]
[1763437365599,0.16528723,90718.0,90687.0,1.5]
[1763437365600,0.16528723,90718.0,90709.0,0.15749]
[1763437365792,0.16528723,90718.0,90699.0,0.04715]
[1763437366103,0.00219803,90710.0,90687.0,1.5]
[1763437366493,0.20526752,90709.0,90687.0,1.501]
[1763437366692,0.00219803,90700.0,90687.0,1.501]
[1763437366893,0.02544623,90699.0,90687.0,1.501]
[1763437367095,0.19164629,90699.0,90687.0,1.501]
[1763437367394,0.15018,90688.0,90645.0,0.27532]
[1763437367595,0.00016543,90676.0,90645.0,0.27532]
[1763437367790,0.00073267,90680.0,90670.0,0.00219803]
[1763437367990,0.02547263,90679.0,90670.0,0.00219803]
[1763437368199,0.02547263,90678.0,90670.0,0.00219803]
[1763437368397,0.16570965,90679.0,90670.0,0.00219803]
[1763437368706,0.16517631,90677.0,90670.0,0.00219803]
[1763437368893,0.03806746,90677.0,90670.0,0.00419803]
[1763437369092,0.00073267,90680.0,90670.0,0.00419803]
[1763437369498,0.16627704,90679.0,90670.0,0.00419803]
[1763437369806,0.00073267,90680.0,90670.0,0.00519803]
[1763437370192,0.16627704,90679.0,90678.0,0.20464]
[1763437370403,0.00016543,90684.0,90683.0,0.15749]
[1763437372105,0.00016543,90684.0,90680.0,0.00219803]
[1763437372106,0.05822586,90706.0,90699.0,0.0805]
[1763437372403,0.16469894,90705.0,90700.0,0.00219803]
[1763437372602,0.16469894,90705.0,90704.0,0.15749]
[1763437372797,0.05822586,90715.0,90704.0,0.15749]
[1763437372994,0.05822586,90716.0,90710.0,0.00219803]
[1763437373192,0.16469894,90714.0,90710.0,0.00219803]
[1763437373396,0.15018,90701.0,90700.0,0.00016543]
[1763437373792,0.31475858,90701.0,90700.0,0.00016543]
[1763437373998,0.00073267,90700.0,90699.0,0.15749]
[1763437374504,0.05882923,90723.0,90722.0,0.15749]
[1763437374704,0.09573003,90750.0,90727.0,0.15749]
[1763437374705,0.07725205,90742.0,90727.0,0.15749]
[1763437374900,0.16509601,90749.0,90740.0,0.00219803]
[1763437375091,0.00073267,90750.0,90740.0,0.00219803]
[1763437375297,0.19767,90741.0,90722.0,0.00016534]
[1763437375497,0.00073267,90730.0,90722.0,0.00016534]
[1763437377508,0.16484504,90729.0,90722.0,0.00016534]
[1763437377706,0.15159185,90729.0,90722.0,0.00016534]
[1763437379107,0.00073267,90730.0,90729.0,0.15577]
[1763437379296,0.00016534,90745.0,90730.0,0.00219803]
[1763437379702,0.00016534,90745.0,90739.0,0.15577]
[1763437380298,0.00016534,90745.0,90744.0,0.07852]
[1763437380609,0.15241,90741.0,90740.0,0.00219803]
[1763437380812,0.02532324,90741.0,90740.0,0.00219803]
[1763437380995,0.02532324,90744.0,90740.0,0.00219803]
[1763437381198,0.07725205,90764.0,90744.0,0.15577]
[1763437381403,0.07725205,90764.0,90741.0,0.1581]
[1763437381404,0.07725205,90788.0,90765.0,0.15577]
[1763437381604,0.16456291,90775.0,90770.0,0.00219803]
[1763437381805,0.07239,90771.0,90760.0,0.00219803]
[1763437382014,0.16456291,90779.0,90778.0,0.15577]
[1763437382414,0.00073267,90780.0,90778.0,0.15577]
[1763437382709,0.00073267,90780.0,90769.0,0.00016523]
[1763437382710,0.00073267,90780.0,90770.0,0.00219803]
[1763437383313,0.15241,90770.0,90769.0,0.00016523]
[1763437383516,0.15314267,90770.0,90769.0,0.00016523]
[1763437383709,0.31792974,90770.0,90769.0,0.00016523]
[1763437383898,0.16551974,90770.0,90769.0,0.00016523]
[1763437384208,0.82808975,90770.0,90703.0,0.1103822]
[1763437384506,0.07725205,90765.0,90720.0,0.00219803]
[1763437384700,0.53127914,90770.0,90720.0,0.05009803]
[1763437384701,0.00073267,90750.0,90720.0,0.05009803]
[1763437384904,0.16569343,90764.0,90763.0,0.07852]
[1763437385113,0.16569343,90768.0,90763.0,0.07852]
[1763437385313,0.16569343,90766.0,90760.0,0.00219803]
[1763437385516,0.00273267,90770.0,90769.0,0.07852]
[1763437385815,0.00273267,90770.0,90769.0,0.15577]
[1763437386012,0.00073267,90770.0,90769.0,0.15577]
[1763437386208,0.00073267,90770.0,90754.0,0.00016523]
[1763437386411,0.15241,90755.0,90720.0,0.02615]
[1763437386614,0.04976,90762.0,90750.0,0.00219803]
[1763437386810,0.1659658,90754.0,90720.0,0.02515]
[1763437387001,0.04976,90762.0,90730.0,0.00219803]
[1763437387002,0.00073267,90740.0,90730.0,0.00219803]
[1763437387810,4.534e-05,90744.0,90730.0,0.00219803]
[1763437389407,4.534e-05,90744.0,90743.0,0.07852]
[1763437390017,4.534e-05,90744.0,90740.0,0.00219803]
[1763437390517,0.00104534,90744.0,90740.0,0.00219803]
[1763437390720,0.00204534,90744.0,90740.0,0.00219803]
[1763437390909,0.20217,90741.0,90740.0,0.00219803]
[1763437391410,0.20217,90741.0,90728.0,0.00012066]
[1763437391411,0.36828892,90741.0,90728.0,0.00012066]
[1763437391722,0.00204534,90744.0,90743.0,0.15577]
[1763437392216,0.00104534,90744.0,90743.0,0.15577]
[1763437392412,0.20080921,90780.0,90743.0,0.26597]
[1763437392614,0.20080921,90780.0,90740.0,0.00219803]
[1763437392615,0.15241,90771.0,90750.0,0.00219803]
[1763437392912,0.16555198,90770.0,90750.0,0.00219803]
[1763437393313,0.02510941,90769.0,90750.0,0.00219803]
[1763437393507,0.02510941,90768.0,90750.0,0.00219803]
[1763437393707,0.02510941,90767.0,90750.0,0.00236326]
[1763437393908,0.02510941,90766.0,90750.0,0.00236326]
[1763437394113,0.02510941,90765.0,90750.0,0.00236326]
[1763437394308,0.02510941,90764.0,90750.0,0.00236326]
[1763437394513,0.02510941,90763.0,90750.0,0.00236326]
[1763437394819,0.02510941,90762.0,90750.0,0.00236326]
[1763437395016,0.02510941,90761.0,90750.0,0.00236326]
[1763437395217,0.002,90770.0,90750.0,0.00236326]
[1763437395422,0.001,90767.0,90750.0,0.00236326]
[1763437395721,0.001,90763.0,90750.0,0.00236326]
[1763437395910,0.001,90763.0,90750.0,0.25473993]
[1763437396117,0.001,90763.0,90762.0,0.15577]
[1763437396321,0.001,90767.0,90760.0,0.00219803]
[1763437396721,0.00016523,90769.0,90760.0,0.00219803]
[1763437397020,0.001,90761.0,90760.0,0.15796803]
[1763437397611,0.001,90763.0,90762.0,0.15577]
[1763437397921,0.00012664,90769.0,90766.0,0.07852]
[1763437398220,0.00012664,90769.0,90768.0,0.07852]
[1763437398411,0.00012664,90769.0,90768.0,0.15577]
[1763437399114,0.00212664,90769.0,90768.0,0.15577]
[1763437399720,0.00012664,90769.0,90768.0,0.15577]
[1763437399919,0.00012664,90769.0,90759.0,0.36269067]
[1763437399920,0.03911835,90802.0,90770.0,0.00219803]
[1763437400318,0.16438137,90799.0,90770.0,0.00219803]
[1763437400515,0.02397744,90798.0,90770.0,0.00219803]
[1763437400820,0.02397744,90797.0,90770.0,0.2545747]
[1763437401019,0.00016523,90793.0,90774.0,0.00016523]
[1763437401216,0.14893,90791.0,90780.0,0.00219803]
[1763437401414,0.02397744,90792.0,90780.0,0.00219803]
[1763437401415,0.02397744,90790.0,90780.0,0.00219803]
[1763437401616,0.02397744,90789.0,90780.0,0.00219803]
[1763437402119,0.07374,90781.0,90780.0,0.00219803]
[1763437402922,0.09776229,90781.0,90780.0,0.00219803]
[1763437403123,0.07374,90781.0,90780.0,0.00219803]
[1763437403325,0.14893,90775.0,90774.0,0.00016523]
[1763437403533,0.17296497,90775.0,90774.0,0.00016523]
[1763437404330,0.02403497,90775.0,90774.0,0.15381523]
[1763437404625,0.03911835,90790.0,90774.0,0.15381523]
[1763437404813,0.03911835,90790.0,90780.0,0.00219803]
[1763437405010,0.16436974,90785.0,90780.0,0.00219803]
[1763437405210,0.02405523,90784.0,90780.0,0.00219803]
[1763437405516,0.14893,90775.0,90774.0,0.00016523]
[1763437405714,0.14893,90775.0,90735.0,0.1103429]
[1763437405715,0.17298523,90775.0,90740.0,0.25237667]
[1763437405911,0.0392688,90773.0,90750.0,0.00219803]
[1763437406113,0.06332403,90772.0,90750.0,0.00219803]
[1763437406313,0.0392688,90767.0,90750.0,0.00219803]
[1763437406519,0.06332403,90766.0,90750.0,0.00219803]
[1763437406822,0.06332403,90766.0,90720.0,0.02515]
[1763437406823,0.14893,90751.0,90720.0,0.02515]
[1763437407127,0.25237667,90760.0,90701.0,0.1214]
[1763437407128,0.14808,90731.0,90730.0,0.00219803]
[1763437407323,0.17213523,90731.0,90730.0,0.00219803]
[1763437407513,0.17213523,90731.0,90726.0,0.00016523]
[1763437407514,0.14808,90727.0,90726.0,0.00016523]
[1763437407719,0.15888078,90727.0,90686.0,0.05900001]
[1763437407915,0.15888078,90727.0,90700.0,0.00219803]
[1763437407916,0.14808,90701.0,90700.0,0.00219803]
[1763437408123,0.12156996,90701.0,90700.0,0.00219803]
[1763437408327,0.31142145,90701.0,90700.0,0.00219803]
[1763437408516,0.35069025,90701.0,90700.0,0.00219803]
[1763437408917,0.35069025,90701.0,90670.0,0.25237667]
[1763437409123,0.28738076,90701.0,90700.0,0.001]
[1763437409320,0.31139403,90701.0,90668.0,0.0225]
[1763437409520,0.14808,90689.0,90649.0,0.04526]
[1763437409725,0.00016543,90678.0,90670.0,0.00219803]
[1763437410031,0.02401327,90677.0,90670.0,0.00219803]
[1763437410222,0.00016543,90678.0,90670.0,0.00219803]
[1763437410615,7.907e-05,90677.0,90670.0,0.00219803]
[1763437411019,7.907e-05,90677.0,90670.0,0.00319803]
[1763437411228,7.907e-05,90677.0,90670.0,0.00519803]
[1763437413123,0.16627793,90676.0,90670.0,0.00419803]
[1763437413528,7.907e-05,90677.0,90676.0,0.14677]
[1763437415021,0.08728946,90695.0,90694.0,0.14677]
[1763437415331,0.16525441,90709.0,90694.0,0.14677]
[1763437415522,0.16525441,90709.0,90700.0,0.00219803]
[1763437415725,0.1654366,90719.0,90700.0,0.00219803]
[1763437416032,0.1654366,90710.0,90700.0,0.00236346]
[1763437416330,0.0239384,90718.0,90700.0,0.00236346]
[1763437416331,4.189e-05,90718.0,90700.0,0.00236346]
[1763437416524,0.02389364,90717.0,90700.0,0.00236346]
[1763437416719,0.16525937,90709.0,90700.0,0.00236346]
[1763437416920,4.189e-05,90708.0,90700.0,0.00236346]
[1763437417630,4.189e-05,90708.0,90662.0,0.2744]
[1763437417631,0.14808,90701.0,90662.0,0.2744]
[1763437419123,0.16474865,90699.0,90680.0,0.00219803]
[1763437420021,0.00016543,90699.0,90698.0,0.14677]
[1763437420928,0.00116543,90699.0,90698.0,0.14677]
[1763437421432,0.00016543,90699.0,90698.0,0.14677]
[1763437421822,4.189e-05,90700.0,90698.0,0.25701]
[1763437422020,0.33474547,90740.0,90704.0,0.11038]
[1763437422021,0.22504,90731.0,90704.0,0.11038]
[1763437422221,0.29547667,90740.0,90710.0,0.11257113]
[1763437422422,0.29547667,90740.0,90710.0,0.00219803]
[1763437422423,0.16637611,90724.0,90710.0,0.00219803]
[1763437424722,0.16737611,90724.0,90710.0,0.00219803]
[1763437425130,0.16637611,90724.0,90710.0,0.00219803]
[1763437425332,0.16737611,90724.0,90710.0,0.00219803]
[1763437425629,0.25701183,90724.0,90710.0,0.00219803]
[1763437425827,0.25601183,90724.0,90710.0,0.00219803]
[1763437426332,0.16637611,90724.0,90710.0,0.00219803]
[1763437426624,0.00016543,90726.0,90710.0,0.00219803]
[1763437426625,0.16623318,90725.0,90710.0,0.00219803]
[1763437426826,0.25632686,90725.0,90710.0,0.00219803]
[1763437427030,0.09009368,90725.0,90710.0,0.00219803]
[1763437427233,0.16623318,90724.0,90710.0,0.00219803]
[1763437427532,0.16581722,90725.0,90710.0,0.00219803]
[1763437428030,0.00016543,90726.0,90710.0,0.00219803]
[1763437428533,0.16581722,90725.0,90710.0,0.00219803]
[1763437430225,0.07331,90711.0,90710.0,0.00219803]
[1763437430724,0.08672223,90725.0,90710.0,0.00219803]
[1763437430926,0.00016543,90726.0,90710.0,0.00219803]
[1763437431121,0.16615828,90724.0,90710.0,0.00219803]
[1763437431433,0.16615828,90725.0,90710.0,0.00219803]
[1763437431633,0.02419764,90724.0,90710.0,0.00219803]
[1763437431823,0.0899801,90725.0,90710.0,0.00219803]
[1763437432020,0.16544902,90723.0,90710.0,0.00219803]
[1763437432230,0.00016543,90726.0,90710.0,0.00219803]
[1763437432231,0.07331,90711.0,90710.0,0.00219803]
[1763437432821,0.14808,90709.0,90708.0,0.00016543]
[1763437433222,0.16546414,90723.0,90710.0,0.00219803]
[1763437433423,0.02424415,90722.0,90710.0,0.00219803]
[1763437433622,0.02424415,90721.0,90710.0,0.00219803]
[1763437433831,0.00016543,90726.0,90710.0,0.00219803]
[1763437433832,0.02424415,90720.0,90710.0,0.00219803]
[1763437434037,0.02424415,90719.0,90710.0,0.00219803]
[1763437434335,0.00016543,90726.0,90710.0,0.00219803]
[1763437434336,0.02424415,90718.0,90710.0,0.00219803]
[1763437434532,0.02424415,90717.0,90710.0,0.00219803]
[1763437434732,0.00016543,90726.0,90710.0,0.11257103]
[1763437434926,0.02426186,90725.0,90710.0,0.00219803]
[1763437435128,0.02326186,90724.0,90710.0,0.00219803]
[1763437435324,0.02326186,90724.0,90723.0,0.14677]
[1763437435526,0.02326186,90724.0,90711.0,0.110372]
[1763437435527,0.0392688,90738.0,90735.0,0.07472]
[1763437435834,0.16596978,90739.0,90738.0,0.14677]
[1763437436338,0.16596978,90759.0,90736.0,0.133401]
[1763437436339,0.08702371,90751.0,90740.0,0.00219803]
[1763437436539,0.0392688,90759.0,90740.0,0.00219803]
[1763437436739,0.00016533,90755.0,90740.0,0.00219803]
[1763437437742,0.00016533,90755.0,90754.0,0.14742]
[1763437438444,0.00016533,90755.0,90750.0,0.00219803]
[1763437441944,0.00016533,90755.0,90754.0,0.14544]
[1763437442542,0.1999,90799.0,90754.0,0.14544]
[1763437442543,0.08789354,90764.0,90763.0,0.14544]
[1763437442839,0.0392688,90789.0,90775.0,0.14544]
[1763437443142,0.16631519,90788.0,90780.0,0.00219803]
[1763437443441,0.10173335,90800.0,90780.0,0.00219803]
[1763437443442,0.0392688,90803.0,90787.0,0.14544]
[1763437443640,0.14673,90791.0,90790.0,0.00219803]
[1763437444340,0.14673,90791.0,90775.0,0.00116522]
[1763437444341,0.14673,90776.0,90775.0,0.00116522]
[1763437444938,0.31207498,90776.0,90736.0,0.02306]
[1763437445138,0.31207498,90776.0,90750.0,0.00219803]
[1763437446240,0.00016522,90772.0,90754.0,0.00016522]
[1763437446441,0.00016522,90772.0,90770.0,0.00219803]
[1763437446644,0.00016522,90772.0,90771.0,0.14544]
[1763437447031,0.00016522,90772.0,90770.0,0.00219803]
[1763437447445,0.00016522,90772.0,90771.0,0.14544]
[1763437448246,0.00116522,90772.0,90771.0,0.14544]
[1763437449044,0.00116522,90772.0,90771.0,0.07274]
[1763437449535,0.00116522,90772.0,90771.0,0.14544]
[1763437449741,0.00016522,90772.0,90771.0,0.14744]
[1763437450449,0.00016522,90772.0,90771.0,0.14544]
[1763437451143,0.0392688,90797.0,90771.0,0.14544]
[1763437451344,0.07292,90791.0,90790.0,0.00219803]
[1763437451546,0.09720511,90791.0,90790.0,0.00219803]
[1763437451850,0.33540603,90791.0,90790.0,0.00219803]
[1763437452042,0.18867603,90791.0,90790.0,0.14763803]
[1763437452244,0.00016522,90800.0,90790.0,0.14763803]
[1763437452442,0.02429519,90799.0,90790.0,0.14763803]
[1763437452643,0.02429519,90798.0,90790.0,0.14763803]
[1763437452852,0.001,90791.0,90790.0,0.14763803]
[1763437453148,0.001,90791.0,90790.0,0.07493803]
[1763437453344,0.17102181,90791.0,90790.0,0.00219803]
[1763437453736,0.09721181,90791.0,90790.0,0.00219803]
[1763437453946,0.09821181,90791.0,90790.0,0.00219803]
[1763437454355,0.17202181,90791.0,90790.0,0.00219803]
[1763437454557,0.17302181,90791.0,90790.0,0.00219803]
[1763437456650,0.02629181,90791.0,90790.0,0.07493803]
[1763437456842,0.1730665,90791.0,90781.0,0.00016522]
[1763437457048,0.14673,90782.0,90781.0,0.00016522]
[1763437457349,0.17107059,90782.0,90781.0,0.00016522]
[1763437457548,0.3373674,90782.0,90750.0,0.20059221]
[1763437457754,0.14673,90751.0,90750.0,0.00219803]
[1763437458051,0.14673,90751.0,90730.0,0.20059221]
[1763437458246,0.14673,90751.0,90740.0,0.00219803]
[1763437458445,0.06332191,90750.0,90740.0,0.00219803]
[1763437458648,0.14673,90741.0,90740.0,0.00219803]
[1763437458841,0.13791,90737.0,90736.0,0.00016522]
[1763437459042,0.16224134,90737.0,90736.0,0.00016522]